Cogmind - Beta 11.1 *** ADVENTURER MODE // 2022.07.20 @ 20:51:05 Player: BakkieSloot Result: Destroyed by S-27 Virus with Autogun Performance ------------- Evolutions (3) 1500 Regions Visited (5) 1000 Robots Destroyed (36) 180 Value Destroyed (1224) 1224 Prototype IDs (5) 100 Alien Tech Used (0) 0 Bonus (0) 0 TOTAL SCORE: 4004 Bonus ------- None Cogmind --------- Core Integrity 0/700 Matter 300/300 Energy 100/100 System Corruption 7% Temperature Cool (0) Movement Core (50) Location -7/Lower Caves Parts ------- > --- POWER (3) -------- (None) > --- PROPULSION (3) --- (None) > --- UTILITY (5) ------ Advanced Visual Processing Unit Core Analyzer > --- WEAPON (2) ------- (None) > --- INVENTORY (5) ---- Cryofiber Web Advanced Terrain Scan Processor Riot Gun Remote Datajack Peak State ------------ > --- POWER ------------ Light Nuclear Core Makeshift Power Source > --- PROPULSION ------- Medium Treads Medium Treads Medium Treads > --- UTILITY ---------- Improved Heat Sink High-capacity Battery Advanced Visual Processing Unit Core Analyzer Matter Filter > --- WEAPON ----------- Particle Cannon Enhanced Autogun > --- INVENTORY -------- Cryofiber Web Advanced Terrain Scan Processor Riot Gun Remote Datajack [Rating: 41] Favorites ----------- Power Improved Ion Engine Engine Improved Ion Engine Power Core Light Nuclear Core Propulsion Medium Treads Treads Medium Treads Wheel Compact Wheel Hover Unit Aerolev Unit Utility High-capacity Battery Device Cryofiber Web Storage High-capacity Battery Processor Signal Interpreter Weapon Assault Cannon Energy Gun Medium Laser Energy Cannon Particle Cannon Ballistic Gun Shotgun Ballistic Cannon Assault Cannon Build | -11 -10 -9 -8 -7 -7 ------- Run | Scr Mat Mat Mat Fac Low Slots Evolved 6 | . . 2 2 2 . Power 2 | . . 1 1 . . Propulsion 1 | . . . . 1 . Utility 3 | . . 1 1 1 . Weapon . | . . . . . . Parts Attached 43 | 5 3 12 14 6 3 Power 15 | 1 . 4 9 . 1 Engine 7 | 1 . 4 1 . 1 Core 8 | . . . 8 . . Reactor . | . . . . . . Propulsion 7 | 2 . . 3 1 1 Treads 4 | . . . 2 1 1 Leg . | . . . . . . Wheel 2 | 2 . . . . . Hover 1 | . . . 1 . . Flight . | . . . . . . Utility 10 | . 1 3 2 3 1 Device 5 | . . 1 2 2 . Storage 2 | . 1 1 . . . Processor 3 | . . 1 . 1 1 Hackware . | . . . . . . Protection . | . . . . . . Artifact . | . . . . . . Weapon 11 | 2 2 5 . 2 . Energy Gun 2 | 1 . 1 . . . Energy Cannon 2 | . 1 . . 1 . Ballistic Gun 5 | 1 1 2 . 1 . Ballistic Cannon 2 | . . 2 . . . Launcher . | . . . . . . Special Weapon . | . . . . . . Impact Weapon . | . . . . . . Slashing Weapon . | . . . . . . Piercing Weapon . | . . . . . . Special Melee Weapon . | . . . . . . Unidentified Prototypes 1 | . . . 1 . . Parts Lost 14 | . . 1 . 3 10 Power 3 | . . . . 1 2 Propulsion 3 | . . 1 . . 2 Utility 5 | . . . . 1 4 Weapon 3 | . . . . 1 2 Highest Loss Streak 9 | . . 1 . 2 9 To Critical Strikes 1 | . . . . . 1 Average Slot Usage (%) 86 | . 81 93 86 76 85 Engine 10 | . 14 22 7 . 5 Core 5 | . . . 11 8 6 Treads 10 | . . . 8 23 22 Wheel 8 | . 28 20 . . . Hover 1 | . . . 4 . . Device 14 | . . 7 18 23 17 Storage 9 | . 10 11 9 7 6 Processor 7 | . . 9 9 4 9 Energy Cannon 3 | . 12 1 . 4 6 Ballistic Gun 3 | . 14 4 . . 6 Ballistic Cannon 10 | . . 16 18 4 . Naked Turns . | . . . . . . Heaviest Build 40 | 8 14 29 40 36 27 Greatest Support 84 | 26 26 26 56 84 84 Greatest Overweight (x) 4 | . . 1 4 . . Average Overweight (x) . | . . . 1 . . Largest Inventory Capacity 5 | 5 5 5 5 5 5 Average Capacity 5 | 5 5 5 5 5 5 Most Carried 5 | 5 5 5 5 5 5 Average Carried 3 | 1 3 3 2 4 4 Final Capacity 5 | 5 5 5 5 5 5 Final Carried 5 | 1 4 5 5 4 4 Class Distribution -------------------- 100% | Mutant Dominant Class ---------------- Mutant | -10/Materials Mutant | -9/Materials Mutant | -8/Materials Mutant | -7/Factory Mutant | -7/Lower Caves Resources | -11 -10 -9 -8 -7 -7 ----------- Run | Scr Mat Mat Mat Fac Low Matter Collected 930 | 250 58 347 109 . 166 Remotely . | . . . . . . Salvage Created 1155 | . 86 490 182 170 227 Parts 63 | . 5 37 9 2 10 Haulers Intercepted . | . . . . . . Recyclers Shooed . | . . . . . . Parts Field Recycled 25 | . . . 25 . . Retrieved Matter 257 | . . . 257 . . Parts Self-Destructed 11 | . . . . . 11 Prevented 1 | . . . . . 1 Kills | -11 -10 -9 -8 -7 -7 ------- Run | Scr Mat Mat Mat Fac Low Combat Hostiles Destroyed 30 | . 3 13 5 4 5 Guns 6 | . 1 2 . . 3 Cannons 23 | . 2 11 5 3 2 AOE 1 | . . . . 1 . Classes Destroyed 6 | . 2 3 1 . . Worker 1 | . . . 1 . . Watcher 5 | . 2 3 . . . Swarmer 7 | . 3 3 . . 1 Grunt 13 | . . 4 2 3 4 Brawler 2 | . . 1 . 1 . Sentry 8 | . . 5 3 . . Best Kill Streak 5 | . 1 5 3 4 2 Combat Bots Only 4 | . 1 4 2 4 2 Max Kills in Single Turn 2 | . 1 1 2 1 1 Gunslinging . | . . . . . . Exploded 1 | . . . . 1 . Melee . | . . . . . . Uniques/NPCs Destroyed . | . . . . . . Combat | -11 -10 -9 -8 -7 -7 -------- Run | Scr Mat Mat Mat Fac Low Damage Taken 2537 | . 69 257 285 336 1590 Core 841 | . 15 43 76 . 707 Absorbed by Shields . | . . . . . . Core Remaining (%) 92 | 100 94 89 86 . . Volleys Fired 83 | . 14 30 14 7 18 Largest 2 | . 2 2 2 2 2 Hottest 93 | . 79 88 88 88 93 Shots Fired 159 | . 21 60 28 14 36 Gun 35 | . 7 10 . . 18 Cannon 124 | . 14 50 28 14 18 Launcher . | . . . . . . Special . | . . . . . . Kinetic 125 | . 7 58 28 14 18 Thermal 18 | . . . . . 18 Explosive . | . . . . . . Electromagnetic 16 | . 14 2 . . . Robot Hit Streak 14 | . 6 10 14 8 12 Robot Miss Streak 5 | . 2 5 2 1 1 Penetration Max . | . . . . . . Secondary Targets . | . . . . . . Shots Hit Robots 113 | . 13 37 22 11 30 Core Hits 50 | . 4 19 8 8 11 Critical Kills . | . . . . . . Critical Parts Destroyed . | . . . . . . Critical Strikes 4 | . 1 2 . 1 . Blast 3 | . . 2 . 1 . Corrupt 1 | . 1 . . . . Melee Attacks . | . . . . . . Impact . | . . . . . . Slashing . | . . . . . . Piercing . | . . . . . . Sneak Attacks . | . . . . . . Combat Hostiles . | . . . . . . Follow-up Attacks . | . . . . . . Damage Inflicted 2642 | . 340 847 535 347 573 Guns 421 | . 31 148 . . 242 Cannons 2128 | . 309 699 535 254 331 Explosions 93 | . . . . 93 . Melee . | . . . . . . Ramming . | . . . . . . Kinetic 1887 | . 31 825 535 254 242 Thermal 424 | . . . . 93 331 Explosive . | . . . . . . Electromagnetic 331 | . 309 22 . . . Impact . | . . . . . . Slashing . | . . . . . . Piercing . | . . . . . . Highest Corruption 7 | . . . . 2 7 Average Corruption 2 | . . . . 2 2 Corruption Purged . | . . . . . . Corruption Blocked . | . . . . . . Effects 11 | . . . . 4 7 Message Errors 3 | . . . . 2 1 Matter Fused 2 | . . . . . 2 Heat Flow Errors 2 | . . . . 1 1 Energy Discharges 1 | . . . . 1 . Data Loss (minor) 3 | . . . . . 3 Overload Shots . | . . . . . . Overflow Damage 93 | . 44 . . 49 . Projectiles 44 | . 44 . . . . Explosions 49 | . . . . 49 . Melee . | . . . . . . Knockbacks 8 | . . 1 4 3 . Impact . | . . . . . . Kinetic 8 | . . 1 4 3 . Secondary . | . . . . . . Self-Inflicted Damage 152 | . . . . 152 . Shots 2 | . . . . 2 . Rammed . | . . . . . . Targets Rammed . | . . . . . . Kicked . | . . . . . . Crushed . | . . . . . . Highest Temperature 341 | . 110 175 341 74 254 Average Temperature 85 | . 40 59 175 19 100 Received Heat Transfer 738 | . . 114 144 72 408 Siege Activations . | . . . . . . Robots Corrupted . | . . . . . . Combat Hostiles . | . . . . . . Parts Fried 2 | . 2 . . . . Impact Corruptions . | . . . . . . Robots Melted . | . . . . . . Combat Hostiles . | . . . . . . Parts Melted . | . . . . . . Heat Transferred 642 | . . . . 50 592 Parts Sabotaged . | . . . . . . Parts Stolen . | . . . . . . Parts Stripped . | . . . . . . Power Chain Reactions . | . . . . . . Missiles Intercepted . | . . . . . . Alert | -11 -10 -9 -8 -7 -7 ------- Run | Scr Mat Mat Mat Fac Low Peak Influence 375 | . 154 375 261 155 . Initial 135 | . . 55 135 44 . Average 148 | . 75 207 136 115 . Maximum Alert Level 1 | . . 1 1 . . Low Security (%) 78 | 100 100 55 79 100 . Level 1 21 | . . 44 20 . . Level 2 . | . . . . . . Level 3 . | . . . . . . Level 4 . | . . . . . . Level 5 . | . . . . . . High Security . | . . . . . . Max Security . | . . . . . . Squads Dispatched 4 | . . 2 1 1 . Investigation 3 | . . 1 1 1 . Extermination . | . . . . . . Reinforcement 1 | . . 1 . . . Assault . | . . . . . . Garrison . | . . . . . . Intercept . | . . . . . . Searches Triggered . | . . . . . . Construction Impeded . | . . . . . . Haulers Reinforced . | . . . . . . Active Scanning Responses . | . . . . . . Cargo Convoy Interrupts . | . . . . . . Stealth | -11 -10 -9 -8 -7 -7 --------- Run | Scr Mat Mat Mat Fac Low Distress Signals . | . . . . . . Communications Jammed . | . . . . . . Distress Signals . | . . . . . . Times Spotted 54 | . 8 21 7 4 14 Peak Tracking Total 8 | . 3 4 4 4 8 Tactical Retreats 2 | . 1 . . . 1 Traps | -11 -10 -9 -8 -7 -7 ------- Run | Scr Mat Mat Mat Fac Low Traps Triggered 3 | . . 1 1 1 . Indirectly . | . . . . . . Trap Hack Attempts . | . . . . . . Triggered . | . . . . . . Disarmed . | . . . . . . Reprogrammed . | . . . . . . Reused . | . . . . . . Traps Extracted . | . . . . . . Installed . | . . . . . . Triggered 2 | . . . . . 2 Machines | -11 -10 -9 -8 -7 -7 ---------- Run | Scr Mat Mat Mat Fac Low Machines Disabled 5 | . 1 2 . 2 . Max in Single Turn 2 | . 1 1 . 2 . Machines Sabotaged . | . . . . . . Garrisons Compromised . | . . . . . . Overloaded Fab Kills . | . . . . . . Hacking | -11 -10 -9 -8 -7 -7 --------- Run | Scr Mat Mat Mat Fac Low Machines Accessed 15 | . 2 7 3 2 1 Terminals 8 | . 1 5 2 . . Fabricators 1 | . . . . 1 . Repair Stations 1 | . . 1 . . . Recycling Units 3 | . 1 1 . 1 . Scanalyzers 1 | . . . 1 . . Garrison Access . | . . . . . . Total Hacks 36 | . 9 13 6 7 1 Successful 35 | . 9 12 6 7 1 Failed 1 | . . 1 . . . Catastrophic . | . . . . . . Database Lockouts . | . . . . . . Manual . | . . . . . . Terminals 19 | . 4 11 4 . . Fabricators 3 | . . . . 3 . Repair Stations 1 | . . 1 . . . Recycling Units 10 | . 5 1 . 4 . Scanalyzers 2 | . . . 2 . . Garrison Access . | . . . . . . Terminal Hacks 19 | . 4 10 4 . 1 Record 14 | . 3 9 2 . . Prototype ID Bank 2 | . . 1 1 . . Open Door 1 | . . . . . 1 Alert Level 1 | . 1 . . . . Maintenance Status 1 | . . . 1 . . Fabricator Hacks 3 | . . . . 3 . Network Status 1 | . . . . 1 . Load Schematic 1 | . . . . 1 . Build 1 | . . . . 1 . Repair Station Hacks 1 | . . 1 . . . Scan Component 1 | . . 1 . . . Recycling Unit Hacks 10 | . 5 1 . 4 . Process 3 | . 2 . . 1 . Report Inventory 4 | . 2 1 . 1 . Retrieve Matter 3 | . 1 . . 2 . Scanalyzer 2 | . . . 2 . . Insert Component 1 | . . . 1 . . Analyze 1 | . . . 1 . . Garrison Access Hacks . | . . . . . . Unauthorized Hacks . | . . . . . . Terminals . | . . . . . . Fabricators . | . . . . . . Repair Stations . | . . . . . . Recycling Units . | . . . . . . Scanalyzers . | . . . . . . Garrison Access . | . . . . . . Data Cores Recovered . | . . . . . . Used . | . . . . . . Hacking Detections 4 | . 1 1 1 1 . Full Trace Events 1 | . . . . 1 . Feedback Events . | . . . . . . Feedback Blocked . | . . . . . . Robot Schematics Acquired . | . . . . . . Robots Built . | . . . . . . Authchips . | . . . . . . Time . | . . . . . . Total Robot Build Rating . | . . . . . . Part Schematics Acquired 1 | . . . 1 . . Parts Built 1 | . . . . 1 . Authchips . | . . . . . . Time 51 | . . . . 51 . Total Part Build Rating 1 | . . . . 1 . Parts Repaired . | . . . . . . Time . | . . . . . . Parts Recycled . | . . . . . . Recycled Matter 109 | . 96 . . 13 . Retrieved Matter 109 | . 96 . . 13 . Retrieved Components . | . . . . . . Parts Scanalyzed 1 | . . . 1 . . Part Schematics Acquired 1 | . . . 1 . . Parts Damaged . | . . . . . . Bothacking | -11 -10 -9 -8 -7 -7 ------------ Run | Scr Mat Mat Mat Fac Low Used RIF Installer . | . . . . . . Robots Hacked . | . . . . . . Non-combat . | . . . . . . Combat . | . . . . . . Robot Hacks Applied . | . . . . . . Relay Couplers Released . | . . . . . . Fabnet Peak Effective % . | . . . . . . Robots Rewired . | . . . . . . Allies Hacked . | . . . . . . Hacks Repelled . | . . . . . . Allies | -11 -10 -9 -8 -7 -7 -------- Run | Scr Mat Mat Mat Fac Low Total Allies . | . . . . . . Largest Group . | . . . . . . Highest-Rated Group . | . . . . . . Highest-Rated Ally . | . . . . . . Total Orders . | . . . . . . Ally Attacks . | . . . . . . Total Damage . | . . . . . . Kills . | . . . . . . Allies Corrupted . | . . . . . . Allies Melted . | . . . . . . Intel | -11 -10 -9 -8 -7 -7 ------- Run | Scr Mat Mat Mat Fac Low Robot Analysis Total . | . . . . . . Derelict Logs Recovered . | . . . . . . Drone Launches . | . . . . . . Drone Recoveries . | . . . . . . Exploration | -11 -10 -9 -8 -7 -7 ------------- Run | Scr Mat Mat Mat Fac Low Turns Passed 2598 | 35 224 733 687 431 488 Spaces Moved 1624 | 30 169 608 311 250 256 Core 14 | 14 . . . . . Treads 692 | . . . 186 250 256 Legs . | . . . . . . Wheels 817 | 16 169 608 24 . . Hover 101 | . . . 101 . . Flight . | . . . . . . Fastest Speed 50 | 50 90 90 130 160 160 Average Speed 134 | 71 90 98 192 160 160 Slowest Speed 290 | 90 90 115 290 160 160 Overloaded Moves . | . . . . . . Propulsion Burnouts . | . . . . . . Robots Hopped . | . . . . . . Cave-ins Triggered . | . . . . . . Exploration Rate (%) 29 | 4 38 61 22 9 42 Regions Visited 5 Branch Regions 1 Pre-discovered Areas . | . . . . . . Known Exits Taken 2 | . . 1 1 . . Unknown Exits Taken 3 | 1 1 . . 1 . Scrap Searched 7 | . . . . . 7 Spaces Dug . | . . . . . . Terrain Destroyed 51 | . . 5 3 43 . Melee . | . . . . . . Projectile 8 | . . 5 3 . . AOE 43 | . . . . 43 . Terrain Rammed . | . . . . . . Walls Destroyed . | . . . . . . Machines Disabled . | . . . . . . Actions | -11 -10 -9 -8 -7 -7 --------- Run | Scr Mat Mat Mat Fac Low Total 1894 | 42 218 684 376 268 306 Wait 75 | 3 29 17 . . 26 Move 1619 | 29 168 607 310 249 256 Hop . | . . . . . . Pick Up 46 | 5 4 11 20 4 2 Fast Attach 2 | 1 . . . 1 . Attach 20 | 4 1 3 5 5 2 Detach . | . . . . . . Swap 21 | . 2 9 9 . 1 Drop 28 | . . 7 18 2 1 Fire 83 | . 14 30 14 7 18 Melee . | . . . . . . Ram . | . . . . . . Kick . | . . . . . . Crush . | . . . . . . Escape Stasis . | . . . . . . Rewire . | . . . . . . Trap . | . . . . . . Miscellaneous . | . . . . . . Route ------- -11/Scrapyard -10/Materials (discovered 2 exits: *Mat / [*Min]) -9/Materials (discovered 4 exits: *Mat x2 / *Min x2) -8/Materials -7/Factory -7/Lower Caves History --------- Turn | Location | Event 14 | -11/Scrapyard | Discovered new exit (range 15) 36 | -11/Scrapyard | Entered Materials 99 | -10/Materials | Discovered new exit (range 12) 223 | -10/Materials | Discovered new exit (range 11) 260 | -10/Materials | Entered another Materials area 260 | -9/Materials | Evolved 2 slots: Power x1, Utility x1 311 | -9/Materials | Build established: Mutant 668 | -9/Materials | Discovered new exit (range 15) 689 | -9/Materials | Discovered new exit (range 16) 826 | -9/Materials | Discovered new exit (range 7) 832 | -9/Materials | Identified exit to Mines 975 | -9/Materials | Discovered new exit (range 14) 992 | -9/Materials | Identified exit to Materials 993 | -9/Materials | Entered another Materials area 993 | -8/Materials | Evolved 2 slots: Power x1, Utility x1 1629 | -8/Materials | Discovered new exit (range 3) 1679 | -8/Materials | Identified exit to Factory 1680 | -8/Materials | Entered Factory 1680 | -7/Factory | Evolved 2 slots: Propulsion x1, Utility x1 1941 | -7/Factory | Fabricated ECM Suite? 2097 | -7/Factory | Discovered new exit (range 8) 2111 | -7/Factory | Entered Lower Caves 2388 | -7/Lower Caves | Spotted B-75 Beast 2565 | -7/Lower Caves | Attracted the attention of an 0b10 checkpoint 2589 | -7/Lower Caves | Core integrity fell below 50% 2596 | -7/Lower Caves | Core integrity fell below 20% 2599 | -7/Lower Caves | Destroyed by S-27 Virus with Autogun Last Messages --------------- 02546_ K&3PJ P|MB&:Q>TPTIEJWI LLOD4Y/W 02565_ Y-54 Guardian: "INTERCEPTING UNREGISTERED DERELICT." 02568_ S-27 Virus destroyed. 02571_ System corrupted: Component data lost. 02575_ Med. Treads destroyed. 02577_ Med. Treads severed. 02577_ Lgt. Nuclear Core destroyed. 02578_ Imp. Heat Sink destroyed. 02583_ Particle Cannon destroyed. 02583_ System corrupted by crushing effect (+1). 02585_ Mak. Power Source destroyed. 02587_ Med. Treads destroyed. 02588_ Matter Filter destroyed. 02588_ Enh. Autogun destroyed. 02589_ Critical hit (Smash). 02589_ Hcp. Battery destroyed. 02589_ System corrupted by crushing effect (+4). 02589_ Knocked back. 02591_ L-41 Fighter destroyed. 02593_ Critical hit (Burn: +37). Map ----- +----------------------------------------------------+ | ?????????????????????????????????????????????????? | | ?????????????????????????????????????????????????? | | ?????????????????????????????????????????????????? | | ?????????????????????????????????????????????????? | | ?????????????????????????????????? ?????????????? | | ?????????????????????????????????? ???????????? | | ?????????????????????????????????? ????????????? | | ?????????????????????????????????# ????????????? | | ????????????????????????????????? ????????????? | | ????????????????????????????????? ?????????????? | | ????????????????????????????????? ?????????????? | | ??????????? ????????????????????? #?????????????? | | ??????????# ???????????????????# ??????????????? | | ??????????# ##??????????????## ??????????????? | | ??????????# ?????????????# ???????????????? | | ???????????# ###??????????# ???????????????? | | ????????????# ??????????# #???????????????? | | ?????????????? ?????????# #???????????????? | | ???????????????# ???###??# #???????????????? | | ???????????????# ??## ##?# #???????????????? | | ???????????????# ?# ### #???????????????? | | ???????????????# ## #???????????????? | | ???????????????# % g ##??####????????? | | ?????????????????#### Y #### ##???????? | | ????????????????????# s%b ## #???????? | | ????????????????????# s @ ## ##??????? | | ???????????????????# s ### ## ##?????? | | ??????????????? s ######?### ##????? | | ????????????# #?????????## #????? | | ????????????## ##???????##### ## #???? | | ?????????????#### ??????????# #### #?? | | ????????????????##??????????## #???# #? | | ???????????????????????????## #????# # | | ???????????????????????????# ## #?????# | | ???????????????????????????# ######??????## | | ???????????????????????????# #?????????????##### | | ???????????????????????????# ##????????????????? | | ??????????????????????????## #????????????????? | | ?????????????????????????## #????????????????? | | ?????????????????????????# #????????????????? | | ?????????????????????????# ##?????######?????? | | ?????????????????????????## ##????? ?????? | | ??????????????????????????## #????? ?????? | | ???????????????????????????# #???? # ???? | | ???????????????????????????# #???# # ???? | | ??????????????????????????## #### #???? | | ?????????????????????????## #???? | | ???????????????????????### ## ???? | | ???????????????????????# ??? | | ???????????????????????## ?## | +----------------------------------------------------+ Best States ------------- Heat Dissipation 48 Energy Generation 35 Energy Capacity 705 Matter Stores 300 Matter Capacity 300 Sight Range 20 Terrain Scan Density 10 Base Temperature (-) 100 Resistance: KI 20 Resistance: TH 20 Resistance: EX 20 Resistance: EM 20 Resistance: I 20 Resistance: S 20 Resistance: P 20 Evasion (%) 50 Core Analysis 6 Recoil Reduction 3 Matter Filtering 30 Particle Charging 15 Offensive Hacking 10 Item Schematics ----------------- ECM Suite | -8/Materials | Scanalyzed Robot Schematics ------------------ None Fabricated ------------ ECM Suite | x1 | -7/Factory Alien Tech Used ----------------- None Achievements -------------- Just What I Needed Made in Tau Ceti IV Novice Programmer Storm Trooper Challenges ------------ None Game ------ Seed SegregatorBombSubcomponent Manual? 0 Play Time 00:32:20 Cumulative 1.9 hours Start 2022.07.20 @ 20:20:14 End 2022.07.20 @ 20:51:05 Sessions 1 Manual Loads 0 Difficulty Adventurer Special Mode None Game No. 4 Rogue 0 Adventurer 4 Explorer 0 Win Type - Total 0 Types 0/0/0/0/0/0/0/0/0 Lore% 4 Gallery% 5 Achievement% 6 Wizard Run 0 Options --------- ASCII 0 Keyboard 0 Movement Mouse Keybinds 0 Fullscreen 1 Font 18/SmallcapsGlow Map View 76x50 Tactical HUD 1 Map Filters NONE Filters NONE Steam 1 RUN: a17697a1-aadc-411d-ba2b-3e3c93a3acf6